lending/lending_fUSD_20240622
["ID","MTS","AMOUNT","RATE_DAILY","PERIOD"]
[330177942,1719081039168,-1642.6789177,0.00014,2]
[330177943,1719081039180,-673.38953007,0.00014,2]
[330177944,1719081039193,-383.65,0.00014,2]
[330177945,1719081039206,-261.9,0.00014,2]
[330177946,1719081039218,-849.33,0.00014,2]
[330177947,1719081039231,-325.82,0.00014,2]
[330177948,1719081040796,-24458.8166724,0.00014,2]
[330177949,1719081040995,-3255.0,0.00014,2]
[330177950,1719081041007,-4832.22556236,0.00014,2]
[330177951,1719081041019,-59948.28438693,0.00014,2]
[330177952,1719081041031,-17756.86832099,0.00014,2]
[330177953,1719081041162,-268.39695621,0.00014,2]
[330177954,1719081041174,-449.40301728,0.00014,2]
[330177955,1719081041187,-1407.30119985,0.00014,2]
[330177956,1719081041198,-450.89923207,0.00014,2]
[330177957,1719081041210,-18872.05885104,0.00014,2]
[330177965,1719081043670,-300.08603421,0.00014,2]
[330177966,1719081043682,-2129.66230494,0.00014,2]
[330177967,1719081043693,-781.190806,0.00014,2]
[330177968,1719081044471,-69458.38900007,0.00014,2]
[330177969,1719081044481,-685.50165271,0.00014,2]
[330177970,1719081044493,-1016.1,0.00014,2]
[330177971,1719081044503,-10750.945965,0.00014,2]
[330177972,1719081044514,-405.5664405,0.00014,2]
[330177973,1719081044526,-3525.91654635,0.00014,2]
[330177974,1719081044538,-6517.10792,0.00014,2]
[330177975,1719081044571,-307.10035161,0.000139,2]
[330177976,1719081044581,-26514.01510395,0.00014,2]
[330177977,1719081044591,-764.825,0.00014,2]
[330177978,1719081044602,-635.69802414,0.00014,2]
[330177979,1719081044613,-719.07075033,0.00014,2]
[330177980,1719081044624,-17365.33401791,0.00014,2]
[330177981,1719081044635,-3924.53627189,0.00014,2]
[330177982,1719081044646,-4303.63783665,0.00014,2]
[330177983,1719081044657,-1405.2,0.00014,2]
[330177984,1719081044709,-1117.23413373,0.00014,2]
[330177985,1719081044721,-1370.91809665,0.00014,2]
[330177986,1719081046938,-1030.31,0.00014,2]
[330177987,1719081047129,-129699.31703396,0.00014,2]
[330177988,1719081047140,-29608.72670689,0.00014,2]
[330177989,1719081047152,-26046.87249875,0.00014,2]
[330177990,1719081047163,-9411.26014652,0.00014,2]
[330177991,1719081047174,-25574.52361261,0.00014,2]
[330177992,1719081151024,833.0,0.00021907,30]
[330177993,1719081151054,150.5,0.00021907,30]
[330177994,1719081151599,833.0,0.00021897,30]
[330177995,1719081151793,150.5,0.00021907,30]
[330177996,1719081152201,833.0,0.00021887,30]
[330177997,1719081153031,833.0,0.0002191,30]
[330177998,1719081153085,154.42,0.00021897,30]
[330177999,1719081153604,833.0,0.000219,30]
[330178000,1719081154217,833.0,0.0002189,30]
[330178001,1719081154795,833.0,0.000223,30]
[330178002,1719081155423,833.0,0.0002229,30]
[330178003,1719081155973,833.0,0.0002289,30]
[330178004,1719081156882,839.0,0.0002288,30]
[330178005,1719081271038,755.0,0.00021906,30]
[330178006,1719081271531,150.5,0.00021906,30]
[330178007,1719081271951,755.0,0.00021896,30]
[330178008,1719081272338,178.36,0.00021906,30]
[330178009,1719081272432,755.0,0.00021886,30]
[330178010,1719081272660,150.5,0.00021906,30]
[330178011,1719081273079,755.0,0.00021907,30]
[330178012,1719081273235,150.5,0.00021896,30]
[330178013,1719081273591,755.0,0.00021897,30]
[330178014,1719081274139,219.1,0.00021886,30]
[330178015,1719081274443,755.0,0.00021887,30]
[330178016,1719081275320,755.0,0.00021907,30]
[330178017,1719081275650,755.0,0.00021897,30]
[330178018,1719081276311,755.0,0.0002289,30]
[330178019,1719081276826,757.0,0.0002288,30]
[330178024,1719082036767,25243.21790763,0.00013081,2]
[330178025,1719082181968,155.0,0.00013082,2]
[330178026,1719082183942,-283.35538699,0.00013779,2]
[330178027,1719082183968,-196.39936941,0.00013789,2]
[330178028,1719082183994,-363.76426011,0.00013989,2]
[330178029,1719082184019,-4265.26758555,0.00013999,2]
[330178030,1719082184044,-213.15790435,0.00013999,2]
[330178031,1719082184067,-2827.09682855,0.00013999,2]
[330178032,1719082184096,-4350.95866504,0.00014,2]
[330178041,1719082231900,-3000.0,0.0001386,2]
[330178042,1719082231910,-300.0,0.00013999,2]
[330178043,1719082231922,-3747.67161729,0.00014,2]
[330178044,1719082231931,-532.56139112,0.00014567,2]
[330178045,1719082231942,-419.47,0.00014568,6]
[330178046,1719082231952,-619.25,0.00014923,2]
[330178047,1719082231961,-287.0,0.00015337,2]
[330178048,1719082231971,-321.34986589,0.00015478,2]
[330178049,1719082231980,-887.68380317,0.00015478,2]
[330178050,1719082231991,-25243.21790763,0.00015855,2]
[330178051,1719082232001,-294.68098322,0.00015855,2]
[330178052,1719082232011,-384.457988,0.0001589,2]
[330178053,1719082232021,-3000.0,0.0001636,2]
[330178054,1719082232031,-1500.0,0.00016494,5]
[330178055,1719082232040,-171.55,0.00016509,2]
[330178056,1719082232049,-17085.897,0.00016547,2]
[330178057,1719082232059,-384.457988,0.00016712,2]
[330178058,1719082232068,-1000.0,0.00016789,2]
[330178059,1719082232078,-835.73,0.00017095,2]
[330178060,1719082232088,-619.25,0.00017187,2]
[330178061,1719082232097,-200.57,0.0001729,2]
[330178062,1719082232106,-8259.87,0.00017334,2]
[330178064,1719082232115,-250.0,0.00017467,2]
[330178066,1719082232125,-384.457988,0.00017534,2]
[330178068,1719082232134,-417.52,0.00017581,2]
[330178070,1719082232144,-6988.0,0.000182,3]
[330178072,1719082232153,-384.457988,0.00018356,2]
[330178074,1719082232163,-11749.0,0.000188,5]
[330178076,1719082232173,-3000.0,0.0001886,2]
[330178078,1719082232182,-1000.0,0.00018887,2]
[330178080,1719082232191,-1071.84695952,0.00019101,5]
[330178082,1719082232200,-155.0,0.00019151,2]
[330178084,1719082232210,-22578.81,0.00019178,2]
[330178086,1719082232221,-250.0,0.00019178,2]
[330178088,1719082232230,-384.457988,0.00019178,2]
[330178090,1719082232239,-173.30989007,0.00019276,2]
[330178092,1719082232249,-173.22,0.00019277,2]
[330178094,1719082232258,-619.25,0.00019451,2]
[330178096,1719082232268,-830.86573295,0.00019451,2]
[330178098,1719082232277,-155.0,0.00019576,2]
[330178100,1719082232286,-835.73,0.00019835,2]
[330178102,1719082232296,-32428.0,0.0001998,2]
[330178104,1719082232305,-1272.90615694,0.0002,2]
[330178106,1719082232314,-384.457988,0.0002,2]
[330178108,1719082232324,-158.22591328,0.00020039,2]
[330178110,1719082232335,-3104.84356566,0.00020039,2]
[330178112,1719082232344,-491.29,0.00020122,3]
[330178113,1719082232354,-47491.68631983,0.00020132,2]
[330178114,1719082232363,-163.58641568,0.00020176,2]
[330178115,1719082232374,-242.05690048,0.00020177,2]
[330178116,1719082232383,-155.02747164,0.00020178,2]
[330178117,1719082232394,-155.0,0.00020251,2]
[330178118,1719082232405,-155.0,0.00020252,2]
[330178119,1719082232417,-163.57668758,0.00020318,2]
[330178120,1719082232427,-47491.68631983,0.00020319,2]
[330178121,1719082232437,-348.94823229,0.00020431,2]
[330178122,1719082232446,-5378.66326284,0.00020505,2]
[330178123,1719082232455,-826.22244688,0.00020505,2]
[330178124,1719082232464,-47491.68631983,0.00020506,2]
[330178125,1719082232473,-5378.66326284,0.00020531,2]
[330178126,1719082232482,-1500.0,0.0002056,2]
[330178127,1719082232492,-348.94823229,0.00020629,2]
[330178128,1719082232502,-28369.58871134,0.00020694,2]
[330178129,1719082232515,-2593.50362,0.00020694,2]
[330178130,1719082232525,-396.51876854,0.00020694,2]
[330178133,1719082237816,-326.025,0.00015855,2]
[330178135,1719082238037,-617.68373254,0.00015855,2]
[330178137,1719082238047,-2374.53515352,0.00020693,2]
[330178139,1719082238057,-16132.07521995,0.00020694,2]
[330178141,1719082238066,-500.0,0.000207,2]
[330178143,1719082238076,-4328.7746,0.000207,2]
[330178145,1719082238086,-100000.0,0.000207,2]
[330178147,1719082238096,-345.97900744,0.00020767,2]
[330178149,1719082238107,-156.0861616,0.00020785,2]
[330178150,1719082238116,-173274.1706,0.000208,2]
[330178151,1719082238125,-151.0,0.000208,2]
[330178152,1719082238135,-250.730358,0.000208,2]
[330178153,1719082238145,-266.767742,0.000208,2]
[330178154,1719082238155,-151.0,0.000208,2]
[330178155,1719082238165,-151.0,0.000208,2]
[330178156,1719082238174,-186.612247,0.000208,2]
[330178157,1719082238184,-151.0,0.000208,2]
[330178158,1719082238194,-221.970608,0.000208,2]
[330178159,1719082238204,-221.970608,0.000208,2]
[330178160,1719082238214,-151.0,0.000208,2]
[330178161,1719082238223,-151.0,0.000208,2]
[330178162,1719082238232,-151.0,0.000208,2]
[330178163,1719082238242,-151.0,0.000208,2]
[330178164,1719082238251,-1031.542171,0.000208,2]
[330178165,1719082238261,-151.0,0.000208,2]
[330178166,1719082238270,-1031.542171,0.000208,2]
[330178167,1719082238279,-151.0,0.000208,2]
[330178168,1719082238288,-151.0,0.000208,2]
[330178169,1719082238299,-251.029912,0.000208,2]
[330178170,1719082238309,-151.0,0.000208,2]
[330178171,1719082238319,-192.201949,0.000208,2]
[330178172,1719082238328,-205.725715,0.000208,2]
[330178173,1719082238338,-205.725715,0.000208,2]
[330178174,1719082238347,-189.640734,0.000208,2]
[330178175,1719082238357,-151.0,0.000208,2]
[330178176,1719082238366,-195.654822,0.000208,2]
[330178177,1719082238376,-151.0,0.000208,2]
[330178178,1719082238385,-195.654822,0.000208,2]
[330178179,1719082238394,-151.0,0.000208,2]
[330178180,1719082238404,-976.628205,0.000208,2]
[330178181,1719082238413,-976.628205,0.000208,2]
[330178182,1719082238422,-151.0,0.000208,2]
[330178183,1719082238431,-151.0,0.000208,2]
[330178184,1719082238441,-164.855851,0.000208,2]
[330178185,1719082238450,-226.93353,0.000208,2]
[330178186,1719082238460,-162.321069,0.000208,2]
[330178187,1719082238469,-224.300985,0.000208,2]
[330178188,1719082238479,-224.300985,0.000208,2]
[330178189,1719082238489,-151.0,0.000208,2]
[330178190,1719082238500,-151.0,0.000208,2]
[330178191,1719082238509,-533.072131,0.000208,2]
[330178192,1719082238519,-533.072131,0.000208,2]
[330178193,1719082238528,-183.163061,0.000208,2]
[330178194,1719082238538,-183.163061,0.000208,2]
[330178195,1719082238546,-293.250294,0.000208,2]
[330178196,1719082238556,-384.457988,0.00020822,2]
[330178197,1719082238565,-348.94823229,0.00020827,2]
[330178198,1719082238575,-1133.60989333,0.00020829,2]
[330178199,1719082238584,-47491.68631983,0.00020881,2]
[330178200,1719082238593,-5592.90095688,0.00020898,2]
[330178201,1719082238603,-1261.87199955,0.00020898,2]
[330178202,1719082238612,-30984.69591148,0.000209,2]
[330178203,1719082238625,-4932.10948509,0.000209,2]
[330178205,1719082240312,-437.93383648,0.00020701,2]
[330178206,1719082240322,-214.26616352,0.000209,2]
[330178207,1719082240334,-794.70313431,0.000209,2]
[330178208,1719082240345,-449.3685477,0.000209,2]
[330178209,1719082240357,-618.1760013,0.000209,2]
[330178210,1719082243529,-5277.91856876,0.00015337,2]
[330178222,1719082244066,-494.81023496,0.00015337,2]
[330178223,1719082244078,-3268.5741,0.00015337,2]
[330178224,1719082244089,-310.0,0.00015337,2]
[330178225,1719082244296,-8903.12272239,0.00015337,2]
[330178226,1719082244308,-432.0,0.00015337,2]
[330178227,1719082244414,-2295.6112263,0.00015337,2]
[330178239,1719082245978,-847.873,0.00015337,2]
[330178240,1719082245989,-2108.9075643,0.00015337,2]
[330178241,1719082246000,-313.056,0.00015337,2]
[330178242,1719082246012,-777.38,0.00015337,2]
[330178243,1719082246195,-213.96449092,0.00015337,2]
[330178244,1719082246205,-208.70095318,0.00015855,2]
[330178245,1719082246215,-293.250294,0.000208,2]
[330178246,1719082246224,-86.78268105,0.000208,2]
[330178247,1719082246235,-100.09512295,0.000208,2]
[330178248,1719082246244,-552.51190104,0.000209,2]
[330178249,1719082246255,-11953.25597379,0.000209,2]
[330178250,1719083184685,-826.22244688,0.00013899,2]
[330178251,1719083184708,-292.11268091,0.00013989,2]
[330178253,1719083279002,2123.66487221,0.00013999,2]
[330178261,1719083432080,-5378.66326284,0.00013899,2]
[330178262,1719083432092,-1133.60989333,0.00013899,2]
[330178263,1719083432102,-150.0,0.00013988,2]
[330178264,1719083432114,-2050.0582361,0.00013989,2]
[330178265,1719083432124,-766.21694001,0.00014907,2]
[330178266,1719083432134,-157.69153466,0.00014968,2]
[330178267,1719083432144,-199.58307848,0.00014999,2]
[330178268,1719083432160,-230.34920163,0.00014999,2]
[330178269,1719083432169,-155.0,0.00014999,2]
[330178270,1719083432180,-241.95756606,0.00015108,2]
[330178271,1719083432190,-3290.0,0.000165,5]
[330178272,1719083432202,-430.46189482,0.00016599,2]
[330178273,1719083432211,-169.61284638,0.0001671,2]
[330178274,1719083432220,-1164.2,0.00016956,2]
[330178275,1719083432232,-571.67,0.00017539,2]
[330178276,1719083432242,-1000.0,0.0001932,2]
[330178277,1719083432252,-339.58,0.00019331,2]
[330178279,1719083432261,-208.76,0.00019336,2]
[330178281,1719083432271,-447.61,0.00019357,5]
[330178282,1719083432280,-238.13951284,0.00019405,2]
[330178283,1719083432288,-250.0,0.00019416,2]
[330178284,1719083432298,-250.0,0.00019436,2]
[330178285,1719083432307,-161.27,0.00019476,2]
[330178286,1719083432316,-571.67,0.00019803,2]
[330178287,1719083432325,-276.06576681,0.0002,2]
[330178288,1719083432335,-1272.90615694,0.0002,2]
[330178289,1719083432344,-527.94009131,0.00020531,2]
[330178290,1719083432354,-155.0,0.00020595,2]
[330178291,1719083432363,-155.0,0.00020608,2]
[330178292,1719083432372,-235.17702148,0.00020693,2]
[330178293,1719083432381,-235.17702148,0.00020695,2]
[330178294,1719083432390,-500.0,0.00020796,2]
[330178295,1719083432399,-500.0,0.00020796,2]
[330178296,1719083432408,-500.0,0.00020796,2]
[330178297,1719083432417,-500.0,0.00020796,2]
[330178298,1719083432426,-500.0,0.00020796,2]
[330178299,1719083432436,-361.8847,0.00020796,2]
[330178300,1719083432446,-1000.0,0.00020796,2]
[330178301,1719083432456,-1000.0,0.00020796,2]
[330178302,1719083432465,-1000.0,0.00020796,2]
[330178303,1719083432475,-1000.0,0.00020796,2]
[330178304,1719083432485,-1000.0,0.00020796,2]
[330178305,1719083432494,-673.37388356,0.00020796,2]
[330178306,1719083432506,-326.62611644,0.00020796,2]
[330178307,1719083432515,-1000.0,0.00020796,2]
[330178308,1719083432524,-1000.0,0.00020796,2]
[330178309,1719083432533,-745.29388259,0.00020796,2]
[330178310,1719083432574,-0.24994467,0.00020796,2]
[330178311,1719083432586,-254.45617274,0.00020796,2]
[330178312,1719083432596,-181.31499137,0.00020796,2]
[330178313,1719083432607,-328.33,0.00020796,2]
[330178314,1719083432618,-490.35500863,0.00020796,2]
[330178315,1719083432627,-520.492,0.00020796,2]
[330178316,1719083432636,-234.45939485,0.000208,3]
[330178317,1719083432647,-251.54060515,0.000208,3]
[330178318,1719083432656,-334.9862119,0.00020801,2]
[330178319,1719083432683,-182.92182213,0.00020801,2]
[330178320,1719083432694,-459.07817792,0.00020812,2]
[330178321,1719083432705,-826.32911487,0.00020812,2]
[330178322,1719083432714,-155.0,0.00020812,2]
[330178323,1719083432724,-155.0,0.00020824,2]
[330178324,1719083432733,-155.36558088,0.00020836,2]
[330178325,1719083432742,-826.54156378,0.00020888,2]
[330178326,1719083432751,-159.37216947,0.00020889,2]
[330178327,1719083432760,-241.07944647,0.00020898,2]
[330178328,1719083432769,-3523.06960561,0.00020899,2]
[330178329,1719083432781,-2380.487969,0.00020899,2]
[330178330,1719083432790,-1030.62221516,0.000209,2]
[330178331,1719083432801,-969.37778484,0.000209,2]
[330178332,1719083432810,-200.0,0.000209,2]
[330178333,1719083432820,-2000.0,0.000209,2]
[330178334,1719083432829,-200.0,0.000209,2]
[330178335,1719083432838,-2000.0,0.000209,2]
[330178336,1719083433034,-200.0,0.000209,2]
[330178337,1719083433043,-3000.0,0.000209,2]
[330178338,1719083433053,-2000.0,0.000209,2]
[330178339,1719083433062,-200.0,0.000209,2]
[330178340,1719083433072,-418.09,0.00020959,2]
[330178341,1719083433082,-16438.9979,0.00020968,2]
[330178342,1719083433091,-357.56799208,0.00021,2]
[330178343,1719083433101,-1250.0,0.00021,2]
[330178344,1719083433110,-2000.0,0.00021109,2]
[330178345,1719083433119,-200.0,0.00021109,2]
[330178346,1719083433128,-2000.0,0.00021109,2]
[330178347,1719083433138,-200.0,0.00021109,2]
[330178348,1719083433147,-2000.0,0.00021109,2]
[330178349,1719083433161,-200.0,0.00021109,2]
[330178350,1719083433170,-2000.0,0.00021109,2]
[330178351,1719083433180,-200.0,0.00021109,2]
[330178352,1719083433191,-12292.7876,0.00021155,2]
[330178353,1719083433200,-155.0,0.00021155,2]
[330178354,1719083433209,-150.0,0.00021162,2]
[330178355,1719083433219,-150.0,0.00021259,2]
[330178356,1719083433228,-1700.0,0.000213,7]
[330178357,1719083433240,-2000.0,0.0002132,2]
[330178358,1719083433251,-200.0,0.0002132,2]
[330178359,1719083433262,-2000.0,0.0002132,2]
[330178360,1719083433271,-200.0,0.0002132,2]
[330178361,1719083433280,-2000.0,0.0002132,2]
[330178362,1719083433290,-200.0,0.0002132,2]
[330178363,1719083433300,-2000.0,0.0002132,2]
[330178364,1719083433309,-200.0,0.0002132,2]
[330178365,1719083433320,-593.3518,0.00021328,2]
[330178366,1719083433329,-3404.5372,0.00021328,2]
[330178367,1719083433339,-150.0,0.00021342,2]
[330178368,1719083433348,-150.0,0.00021377,2]
[330178369,1719083433358,-181.44669515,0.00021379,2]
[330178370,1719083433367,-1058.29277758,0.00021379,5]
[330178371,1719083433376,-931.1465,0.0002138,2]
[330178372,1719083433387,-177.5368,0.0002138,2]
[330178373,1719083433396,-5126.0387,0.0002138,2]
[330178374,1719083433405,-9016.1602,0.0002138,2]
[330178375,1719083433415,-500.0,0.0002138,2]
[330178376,1719083433425,-602.7287,0.0002138,2]
[330178377,1719083433434,-485.0062,0.0002138,2]
[330178378,1719083433446,-425.04400277,0.0002138,2]
[330178379,1719083433456,-3400.0,0.000214,7]
[330178380,1719083433466,-1109.0,0.000214,3]
[330178381,1719083433475,-876.0,0.000214,3]
[330178382,1719083433484,-150.0,0.000214,2]
[330178383,1719083433495,-387.81521769,0.000214,2]
[330178384,1719083433506,-150.0,0.00021402,2]
[330178385,1719083433515,-150.0,0.00021418,2]
[330178386,1719083433525,-425.04400273,0.00021442,2]
[330178387,1719083433535,-387.81521761,0.00021446,2]
[330178388,1719083433544,-173.22,0.0002146,2]
[330178389,1719083433554,-146139.96547089,0.0002148,2]
[330178390,1719083433563,-387.81521761,0.00021493,2]
[330178391,1719083433572,-5100.0,0.000215,7]
[330178392,1719083433582,-425.04400273,0.00021505,2]
[330178393,1719083433592,-2000.0,0.00021533,2]
[330178394,1719083433601,-200.0,0.00021533,2]
[330178395,1719083433610,-2000.0,0.00021533,2]
[330178396,1719083433620,-200.0,0.00021533,2]
[330178397,1719083433629,-2000.0,0.00021533,2]
[330178398,1719083433638,-200.0,0.00021533,2]
[330178399,1719083433647,-2000.0,0.00021533,2]
[330178400,1719083433657,-200.0,0.00021533,2]
[330178401,1719083433667,-387.81521761,0.00021539,2]
[330178402,1719083433676,-150.0,0.00021547,2]
[330178403,1719083433686,-310.57838255,0.00021561,2]
[330178404,1719083433697,-425.04400273,0.00021567,2]
[330178405,1719083433706,-6541.54480732,0.0002157,2]
[330178406,1719083433715,-186.58298053,0.0002157,2]
[330178407,1719083433726,-7414.25,0.0002157,2]
[330178408,1719083433735,-177.32791547,0.0002158,2]
[330178409,1719083433745,-387.81521761,0.00021585,2]
[330178410,1719083433755,-1240.14659888,0.00021595,5]
[330178411,1719083433765,-6800.0,0.000216,7]
[330178412,1719083433776,-151.0,0.000216,2]
[330178413,1719083433787,-151.0,0.000216,2]
[330178414,1719083433797,-151.0,0.000216,2]
[330178415,1719083433808,-151.0,0.000216,2]
[330178416,1719083433818,-151.0,0.000216,2]
[330178417,1719083433828,-574.583066,0.000216,2]
[330178418,1719083433838,-574.583066,0.000216,2]
[330178419,1719083433848,-151.0,0.000216,2]
[330178420,1719083433858,-151.0,0.000216,2]
[330178421,1719083433868,-151.0,0.000216,2]
[330178422,1719083433877,-185.153143,0.000216,2]
[330178423,1719083433887,-185.153143,0.000216,2]
[330178424,1719083433898,-151.0,0.000216,2]
[330178425,1719083433908,-151.0,0.000216,2]
[330178426,1719083433918,-151.0,0.000216,2]
[330178427,1719083433927,-151.0,0.000216,2]
[330178428,1719083433937,-151.0,0.000216,2]
[330178429,1719083433947,-151.0,0.000216,2]
[330178430,1719083433957,-151.0,0.000216,2]
[330178431,1719083433966,-479.764918,0.000216,2]
[330178432,1719083433976,-479.764918,0.000216,2]
[330178433,1719083433985,-151.0,0.000216,2]
[330178434,1719083433995,-151.0,0.000216,2]
[330178435,1719083434004,-151.0,0.000216,2]
[330178436,1719083434014,-123729.54,0.000216,6]
[330178437,1719083434024,-784.17,0.000216,6]
[330178438,1719083434035,-331.78,0.000216,6]
[330178439,1719083434046,-300.0,0.00021611,2]
[330178440,1719083434056,-1381.7003,0.00021615,2]
[330178441,1719083434066,-152.479974,0.00021615,2]
[330178442,1719083434076,-163.527023,0.00021615,2]
[330178443,1719083434086,-151.0,0.00021615,2]
[330178444,1719083434096,-151.0,0.00021615,2]
[330178445,1719083434106,-151.0,0.00021615,2]
[330178446,1719083434116,-151.0,0.00021615,2]
[330178447,1719083434126,-155.688602,0.00021615,2]
[330178448,1719083434136,-176.08934,0.00021615,2]
[330178449,1719083434146,-176.08934,0.00021615,2]
[330178450,1719083434163,-177.533914,0.00021615,2]
[330178451,1719083434173,-151.0,0.00021615,2]
[330178452,1719083434182,-177.533914,0.00021615,2]
[330178453,1719083434195,-151.0,0.00021615,2]
[330178454,1719083434206,-151.0,0.00021615,2]
[330178455,1719083434216,-151.0,0.00021615,2]
[330178456,1719083434227,-151.0,0.00021615,2]
[330178457,1719083434237,-263.925265,0.00021615,2]
[330178458,1719083434247,-263.925265,0.00021615,2]
[330178459,1719083434257,-151.0,0.00021615,2]
[330178460,1719083434267,-151.0,0.00021615,2]
[330178461,1719083434276,-151.0,0.00021615,2]
[330178462,1719083434286,-151.0,0.00021615,2]
[330178463,1719083434296,-199.773548,0.00021615,2]
[330178464,1719083434306,-199.773548,0.00021615,2]
[330178465,1719083434316,-151.0,0.00021615,2]
[330178466,1719083434326,-151.0,0.00021615,2]
[330178467,1719083434336,-928.387954,0.00021615,2]
[330178468,1719083434346,-928.387954,0.00021615,2]
[330178469,1719083434356,-151.0,0.00021615,2]
[330178470,1719083434365,-152.977553,0.00021615,2]
[330178471,1719083434375,-201.870887,0.00021615,2]
[330178472,1719083434385,-201.870887,0.00021615,2]
[330178473,1719083434394,-151.0,0.00021615,2]
[330178474,1719083434404,-151.0,0.00021615,2]
[330178475,1719083434413,-177.409376,0.00021615,2]
[330178476,1719083434423,-177.409376,0.00021615,2]
[330178477,1719083434432,-151.0,0.00021615,2]
[330178478,1719083434447,-151.0,0.00021615,2]
[330178479,1719083434456,-151.0,0.00021615,2]
[330178480,1719083434468,-878.965384,0.00021615,2]
[330178481,1719083434477,-341.629375,0.00021615,2]
[330178482,1719083434486,-341.629375,0.00021615,2]
[330178483,1719083434496,-168.226083,0.00021615,2]
[330178484,1719083434506,-151.0,0.00021615,2]
[330178485,1719083434516,-161.552564,0.00021623,2]
[330178486,1719083434526,-151.0,0.00021623,2]
[330178487,1719083434536,-425.04400273,0.0002163,2]
[330178488,1719083434546,-150.0,0.00021635,2]
[330178489,1719083434555,-154.92,0.00021644,2]
[330178490,1719083434565,-156.59,0.00021644,2]
[330178491,1719083434574,-150.77,0.00021644,2]
[330178492,1719083434585,-299.07,0.00021644,2]
[330178493,1719083434596,-151.0,0.0002166,2]
[330178494,1719083434605,-156.365427,0.0002166,2]
[330178495,1719083434615,-151.0,0.0002166,2]
[330178496,1719083434625,-151.0,0.0002166,2]
[330178497,1719083434634,-199.773548,0.0002166,2]
[330178498,1719083434644,-199.773548,0.0002166,2]
[330178499,1719083434653,-151.0,0.0002166,2]
[330178500,1719083434663,-151.0,0.0002166,2]
[330178501,1719083434672,-928.387954,0.0002166,2]
[330178502,1719083434681,-928.387954,0.0002166,2]
[330178503,1719083434691,-233.0,0.0002166,2]
[330178504,1719083434700,-201.870887,0.0002166,2]
[330178505,1719083434711,-201.870887,0.0002166,2]
[330178506,1719083434720,-151.0,0.0002166,2]
[330178507,1719083434730,-151.0,0.0002166,2]
[330178508,1719083434740,-177.409376,0.0002166,2]
[330178509,1719083434749,-177.409376,0.0002166,2]
[330178510,1719083434759,-151.0,0.0002166,2]
[330178511,1719083434768,-151.0,0.0002166,2]
[330178512,1719083434778,-151.0,0.0002166,2]
[330178513,1719083434788,-878.965384,0.0002166,2]
[330178514,1719083434797,-341.629375,0.0002166,2]
[330178515,1719083434806,-341.629375,0.0002166,2]
[330178516,1719083434815,-151.0,0.0002166,2]
[330178517,1719083434825,-151.0,0.0002166,2]
[330178518,1719083434834,-283.533566,0.0002166,2]
[330178519,1719083434843,-151.0,0.0002166,2]
[330178520,1719083434853,-574.583066,0.0002166,2]
[330178521,1719083434862,-574.583066,0.0002166,2]
[330178522,1719083434872,-153.709144,0.0002166,2]
[330178523,1719083434883,-151.0,0.0002166,2]
[330178524,1719083434892,-151.0,0.0002166,2]
[330178525,1719083434902,-185.153143,0.0002166,2]
[330178526,1719083434911,-185.153143,0.0002166,2]
[330178527,1719083434921,-151.0,0.0002166,2]
[330178528,1719083434931,-217.910236,0.0002166,2]